[Event "Early-Titled-Tuesday-Blitz-January-23-2024"]
[Site "Chess.com"]
[Date "2024.01.23"]
[Round "3"]
[White "LileKoridze"]
[Black "Predo63"]
[Result "1-0"]
[WhiteElo "2296"]
[BlackElo "2475"]
[TimeControl "180+1"]
[EndTime "8:28:28 PST"]
[Termination "LileKoridze won by resignation"]

1. d4 {[%clk 0:03:00.9]} 1... d5 {[%clk 0:02:59.5]} 2. c4 {[%clk 0:03:01]} 2...
c6 {[%clk 0:02:59.9]} 3. Nf3 {[%clk 0:03:00.9]} 3... Nf6 {[%clk 0:03:00.2]} 4.
e3 {[%clk 0:03:01.3]} 4... Bf5 {[%clk 0:03:00.5]} 5. Nc3 {[%clk 0:02:46.9]} 5...
e6 {[%clk 0:03:00.2]} 6. Nh4 {[%clk 0:02:45.7]} 6... Bg6 {[%clk 0:02:59.5]} 7.
Qb3 {[%clk 0:02:43.1]} 7... Qb6 {[%clk 0:02:59]} 8. Nxg6 {[%clk 0:02:10.7]} 8...
hxg6 {[%clk 0:02:58]} 9. h3 {[%clk 0:02:11.1]} 9... Nbd7 {[%clk 0:02:57.4]} 10.
Bd3 {[%clk 0:02:03.5]} 10... dxc4 {[%clk 0:02:53.2]} 11. Bxc4 {[%clk 0:02:02.9]}
11... Qxb3 {[%clk 0:02:53.2]} 12. Bxb3 {[%clk 0:02:02]} 12... Be7 {[%clk
0:02:50.7]} 13. O-O {[%clk 0:01:57.6]} 13... O-O {[%clk 0:02:48.6]} 14. e4
{[%clk 0:01:57.5]} 14... Rfe8 {[%clk 0:02:47.5]} 15. Be3 {[%clk 0:01:57.5]}
15... Bb4 {[%clk 0:02:44.6]} 16. Bc2 {[%clk 0:01:55.9]} 16... Nb6 {[%clk
0:02:41]} 17. Rad1 {[%clk 0:01:49.5]} 17... Rad8 {[%clk 0:02:39.9]} 18. Rfe1
{[%clk 0:01:45.5]} 18... Bf8 {[%clk 0:02:33.9]} 19. Bg5 {[%clk 0:01:43.8]} 19...
Be7 {[%clk 0:02:33.1]} 20. Bb3 {[%clk 0:01:25.3]} 20... Nh5 {[%clk 0:02:25.6]}
21. Bxe7 {[%clk 0:01:19.5]} 21... Rxe7 {[%clk 0:02:25.6]} 22. g3 {[%clk
0:01:19.3]} 22... Nf6 {[%clk 0:02:24.9]} 23. a4 {[%clk 0:01:11.4]} 23... a5
{[%clk 0:02:20.2]} 24. Kg2 {[%clk 0:01:06.2]} 24... Red7 {[%clk 0:02:19.9]} 25.
e5 {[%clk 0:00:43.2]} 25... Ne8 {[%clk 0:02:19.1]} 26. Ne2 {[%clk 0:00:40.7]}
26... Nc7 {[%clk 0:02:15.4]} 27. Rc1 {[%clk 0:00:40.7]} 27... Ncd5 {[%clk
0:02:14.3]} 28. Rc5 {[%clk 0:00:40.2]} 28... Ra8 {[%clk 0:02:13.7]} 29. Nc3
{[%clk 0:00:37.4]} 29... Nb4 {[%clk 0:02:10.5]} 30. Rd1 {[%clk 0:00:34.5]} 30...
Rdd8 {[%clk 0:01:57.6]} 31. Ne4 {[%clk 0:00:33.3]} 31... Nc8 {[%clk 0:01:52]}
32. Rcc1 {[%clk 0:00:29.1]} 32... Nd5 {[%clk 0:01:49.5]} 33. Nc5 {[%clk
0:00:27]} 33... Rb8 {[%clk 0:01:47.3]} 34. Bxd5 {[%clk 0:00:20.6]} 34... Rxd5
{[%clk 0:01:46.7]} 35. Rd3 {[%clk 0:00:21]} 35... Ne7 {[%clk 0:01:29.4]} 36. Rb3
{[%clk 0:00:20.2]} 36... b6 {[%clk 0:01:29.4]} 37. Na6 {[%clk 0:00:17]} 37...
Rb7 {[%clk 0:01:26.6]} 38. Nc5 {[%clk 0:00:16.2]} 38... Rb8 {[%clk 0:01:16.3]}
39. Na6 {[%clk 0:00:16.3]} 39... Rbd8 {[%clk 0:01:15.4]} 40. Rxb6 {[%clk
0:00:15.7]} 40... Rxd4 {[%clk 0:01:15.8]} 41. Nc5 {[%clk 0:00:12.5]} 41... Rd2
{[%clk 0:01:10.7]} 42. b3 {[%clk 0:00:10.3]} 42... Nd5 {[%clk 0:01:08.3]} 43.
Rxc6 {[%clk 0:00:10.1]} 43... Ne3+ {[%clk 0:01:08.3]} 44. Kg1 {[%clk 0:00:09.9]}
44... Nf5 {[%clk 0:01:08.6]} 45. Ne4 {[%clk 0:00:07.7]} 45... Re2 {[%clk
0:01:02]} 46. Rc8 {[%clk 0:00:04.4]} 46... Rf8 {[%clk 0:00:57]} 47. Nd6 {[%clk
0:00:03]} 47... Rd2 {[%clk 0:00:48.8]} 48. Rxf8+ {[%clk 0:00:03]} 48... Kxf8
{[%clk 0:00:47.1]} 49. Rc8+ {[%clk 0:00:03.7]} 49... Ke7 {[%clk 0:00:47.3]} 50.
Rc7+ {[%clk 0:00:04.3]} 50... Kd8 {[%clk 0:00:46.7]} 51. Rxf7 {[%clk 0:00:04.1]}
51... Nxd6 {[%clk 0:00:45.1]} 52. exd6 {[%clk 0:00:04.6]} 52... Rxd6 {[%clk
0:00:45.3]} 53. Rxg7 {[%clk 0:00:04.9]} 53... Rb6 {[%clk 0:00:44.1]} 54. Rxg6
{[%clk 0:00:04.9]} 54... Ke7 {[%clk 0:00:44.4]} 55. Rg5 {[%clk 0:00:05]} 55...
Rxb3 {[%clk 0:00:44.1]} 56. Rxa5 {[%clk 0:00:05.2]} 56... Kf6 {[%clk 0:00:44.5]}
57. Kg2 {[%clk 0:00:05.8]} 57... Rb2 {[%clk 0:00:44.8]} 58. h4 {[%clk
0:00:06.3]} 58... Rb4 {[%clk 0:00:44.5]} 59. h5 {[%clk 0:00:06.2]} 59... Rb1
{[%clk 0:00:44.3]} 60. g4 {[%clk 0:00:06.4]} 60... Rb4 {[%clk 0:00:43.9]} 61.
Kg3 {[%clk 0:00:07]} 61... Rb3+ {[%clk 0:00:44.5]} 62. f3 {[%clk 0:00:07.5]}
62... Rb1 {[%clk 0:00:44.6]} 63. g5+ {[%clk 0:00:08.1]} 63... Kf7 {[%clk
0:00:42.9]} 64. Ra7+ {[%clk 0:00:08.8]} 64... Kf8 {[%clk 0:00:42.9]} 65. h6
{[%clk 0:00:09.1]} 65... Rh1 {[%clk 0:00:42.5]} 66. h7 {[%clk 0:00:08.6]} 66...
e5 {[%clk 0:00:40.9]} 67. Ra8+ {[%clk 0:00:08.9]} 67... Kg7 {[%clk 0:00:40.7]}
68. h8=Q+ {[%clk 0:00:09.2]} 68... Rxh8 {[%clk 0:00:40.7]} 69. Rxh8 {[%clk
0:00:10.1]} 69... Kxh8 {[%clk 0:00:41.4]} 70. a5 {[%clk 0:00:08.6]} 1-0

[Event "Early-Titled-Tuesday-Blitz-January-23-2024"]
[Site "Chess.com"]
[Date "2024.01.23"]
[Round "3"]
[White "Witty_Alien"]
[Black "Grossboss19"]
[Result "0-1"]
[WhiteElo "2330"]
[BlackElo "2560"]
[TimeControl "180+1"]
[EndTime "8:28:29 PST"]
[Termination "Grossboss19 won by checkmate"]

1. e4 {[%clk 0:03:00.9]} 1... c6 {[%clk 0:02:21.3]} 2. d4 {[%clk 0:02:22.4]}
2... d5 {[%clk 0:02:19.8]} 3. Nd2 {[%clk 0:02:23.1]} 3... dxe4 {[%clk
0:02:14.6]} 4. Nxe4 {[%clk 0:02:24]} 4... Nd7 {[%clk 0:02:14.1]} 5. Ng5 {[%clk
0:02:22]} 5... Ngf6 {[%clk 0:02:05.2]} 6. Bd3 {[%clk 0:02:20.8]} 6... e6 {[%clk
0:02:03.2]} 7. N1f3 {[%clk 0:02:20.3]} 7... Bd6 {[%clk 0:02:00.3]} 8. O-O {[%clk
0:01:57.3]} 8... h6 {[%clk 0:01:49.9]} 9. Nxe6 {[%clk 0:01:35.1]} 9... fxe6
{[%clk 0:01:48.2]} 10. Bg6+ {[%clk 0:01:35.9]} 10... Kf8 {[%clk 0:01:47.1]} 11.
Re1 {[%clk 0:01:35.3]} 11... Nd5 {[%clk 0:01:20.2]} 12. c4 {[%clk 0:00:56.4]}
12... Ne7 {[%clk 0:01:08.4]} 13. Bc2 {[%clk 0:00:55.8]} 13... Nf6 {[%clk
0:01:05.6]} 14. a4 {[%clk 0:00:42.9]} 14... Kf7 {[%clk 0:00:56]} 15. a5 {[%clk
0:00:42.6]} 15... Rf8 {[%clk 0:00:51.6]} 16. a6 {[%clk 0:00:41.1]} 16... bxa6
{[%clk 0:00:50.1]} 17. Re3 {[%clk 0:00:34.2]} 17... Nf5 {[%clk 0:00:42.4]} 18.
Rd3 {[%clk 0:00:26.9]} 18... Kg8 {[%clk 0:00:30.9]} 19. Ne5 {[%clk 0:00:26.9]}
19... Bxe5 {[%clk 0:00:18.9]} 20. dxe5 {[%clk 0:00:27.2]} 20... Nd7 {[%clk
0:00:19.5]} 21. Qh5 {[%clk 0:00:18.5]} 21... Qe8 {[%clk 0:00:18.6]} 22. Qh3
{[%clk 0:00:18.1]} 22... Qf7 {[%clk 0:00:17.4]} 23. f4 {[%clk 0:00:16.3]} 23...
Nc5 {[%clk 0:00:16]} 24. Rd1 {[%clk 0:00:14.9]} 24... Bb7 {[%clk 0:00:14.4]} 25.
b4 {[%clk 0:00:15.4]} 25... Nd7 {[%clk 0:00:13.9]} 26. Bxf5 {[%clk 0:00:10.3]}
26... exf5 {[%clk 0:00:13.5]} 27. Rd6 {[%clk 0:00:10.9]} 27... Rae8 {[%clk
0:00:11.7]} 28. Bb2 {[%clk 0:00:10.7]} 28... Re6 {[%clk 0:00:11.7]} 29. Rad1
{[%clk 0:00:11.4]} 29... Bc8 {[%clk 0:00:09.9]} 30. c5 {[%clk 0:00:09.9]} 30...
Rfe8 {[%clk 0:00:09.7]} 31. Qd3 {[%clk 0:00:07.7]} 31... Rxd6 {[%clk 0:00:09.4]}
32. cxd6 {[%clk 0:00:08]} 32... Nb6 {[%clk 0:00:09.3]} 33. Qg3 {[%clk
0:00:03.3]} 33... Be6 {[%clk 0:00:09.2]} 34. h4 {[%clk 0:00:02.5]} 34... Nd5
{[%clk 0:00:07.5]} 35. Bd4 {[%clk 0:00:02.6]} 35... Kh7 {[%clk 0:00:06.1]} 36.
Bc5 {[%clk 0:00:02.5]} 36... Rb8 {[%clk 0:00:05.8]} 37. Ra1 {[%clk 0:00:02]}
37... Nxb4 {[%clk 0:00:03.5]} 38. Bxb4 {[%clk 0:00:02.2]} 38... Rxb4 {[%clk
0:00:04.4]} 39. Rxa6 {[%clk 0:00:02.9]} 39... Rb1+ {[%clk 0:00:04.5]} 40. Kh2
{[%clk 0:00:03.4]} 40... Rb6 {[%clk 0:00:05.4]} 41. Ra2 {[%clk 0:00:02.2]} 41...
c5 {[%clk 0:00:05.8]} 42. Rc2 {[%clk 0:00:02.2]} 42... c4 {[%clk 0:00:06.1]} 43.
Qe3 {[%clk 0:00:02.1]} 43... Qd7 {[%clk 0:00:04.7]} 44. Qc5 {[%clk 0:00:02.2]}
44... Qd8 {[%clk 0:00:04.4]} 45. Rd2 {[%clk 0:00:01.8]} 45... Qxh4+ {[%clk
0:00:04.4]} 46. Kg1 {[%clk 0:00:02.1]} 46... Qe1+ {[%clk 0:00:05.1]} 47. Kh2
{[%clk 0:00:02.7]} 47... Qh4+ {[%clk 0:00:04.7]} 48. Kg1 {[%clk 0:00:02.8]}
48... Qe1+ {[%clk 0:00:05.6]} 49. Kh2 {[%clk 0:00:03.2]} 49... Qxd2 {[%clk
0:00:06.5]} 50. d7 {[%clk 0:00:03.3]} 50... Qxd7 {[%clk 0:00:06.5]} 51. g4
{[%clk 0:00:03.7]} 51... fxg4 {[%clk 0:00:06.4]} 52. Kg3 {[%clk 0:00:04.3]}
52... Bf5 {[%clk 0:00:06.7]} 53. e6 {[%clk 0:00:04.6]} 53... Qd3+ {[%clk
0:00:06.8]} 54. Kh4 {[%clk 0:00:05]} 54... Rxe6 {[%clk 0:00:07.3]} 55. Qe3
{[%clk 0:00:04.6]} 55... Qf1 {[%clk 0:00:07]} 56. Qxe6 {[%clk 0:00:04.3]} 56...
Qh3# {[%clk 0:00:07.5]} 0-1

[Event "Early-Titled-Tuesday-Blitz-January-23-2024"]
[Site "Chess.com"]
[Date "2024.01.23"]
[Round "3"]
[White "topce"]
[Black "JonasEilenberg"]
[Result "0-1"]
[WhiteElo "2372"]
[BlackElo "2570"]
[TimeControl "180+1"]
[EndTime "8:28:30 PST"]
[Termination "JonasEilenberg won by resignation"]

1. c4 {[%clk 0:03:00.9]} 1... e6 {[%clk 0:02:40.4]} 2. d4 {[%clk 0:02:59]} 2...
d5 {[%clk 0:02:40.9]} 3. Nc3 {[%clk 0:02:58.7]} 3... a6 {[%clk 0:02:38.8]} 4.
cxd5 {[%clk 0:02:53.7]} 4... exd5 {[%clk 0:02:38.8]} 5. Bf4 {[%clk 0:02:51]}
5... Nf6 {[%clk 0:02:38.8]} 6. e3 {[%clk 0:02:50.9]} 6... c5 {[%clk 0:02:39.1]}
7. dxc5 {[%clk 0:02:46.8]} 7... Bxc5 {[%clk 0:02:40]} 8. Nf3 {[%clk 0:02:46.9]}
8... O-O {[%clk 0:02:40.1]} 9. Bd3 {[%clk 0:02:46.3]} 9... Nc6 {[%clk
0:02:40.5]} 10. h3 {[%clk 0:02:45.7]} 10... h6 {[%clk 0:02:40.6]} 11. O-O {[%clk
0:02:45.1]} 11... Be6 {[%clk 0:02:41.2]} 12. Na4 {[%clk 0:02:42.5]} 12... Ba7
{[%clk 0:02:41.3]} 13. Rc1 {[%clk 0:02:42]} 13... Qe7 {[%clk 0:02:40.5]} 14. Ne5
{[%clk 0:02:38.4]} 14... Rac8 {[%clk 0:02:38]} 15. Nxc6 {[%clk 0:02:36.4]} 15...
Rxc6 {[%clk 0:02:38.5]} 16. Rxc6 {[%clk 0:02:35.5]} 16... bxc6 {[%clk
0:02:39.4]} 17. Bxa6 {[%clk 0:02:34.9]} 17... Ne4 {[%clk 0:02:23.4]} 18. a3
{[%clk 0:02:30.6]} 18... c5 {[%clk 0:02:23.4]} 19. Bd3 {[%clk 0:02:23.9]} 19...
Nf6 {[%clk 0:02:19.7]} 20. Nc3 {[%clk 0:02:15]} 20... Bb8 {[%clk 0:02:06.1]} 21.
Qf3 {[%clk 0:02:03.3]} 21... Qb7 {[%clk 0:01:54.3]} 22. Na4 {[%clk 0:01:44.9]}
22... Qc6 {[%clk 0:01:48.7]} 23. Nc3 {[%clk 0:01:31]} 23... Qb7 {[%clk
0:01:48.5]} 24. Rb1 {[%clk 0:01:19.8]} 24... Bxf4 {[%clk 0:01:22.2]} 25. Qxf4
{[%clk 0:01:20.7]} 25... Qb3 {[%clk 0:01:22.4]} 26. Qa4 {[%clk 0:01:02.9]} 26...
Qb7 {[%clk 0:01:18.4]} 27. Qb5 {[%clk 0:01:01.6]} 27... Qc7 {[%clk 0:01:14.4]}
28. Na4 {[%clk 0:00:58.8]} 28... c4 {[%clk 0:01:13.1]} 29. Bc2 {[%clk
0:00:58.2]} 29... Rb8 {[%clk 0:01:11.9]} 30. Qc5 {[%clk 0:00:55.7]} 30... Qd7
{[%clk 0:01:09.4]} 31. Nc3 {[%clk 0:00:55]} 31... Rc8 {[%clk 0:01:09.2]} 32. Qd4
{[%clk 0:00:54.6]} 32... Qd6 {[%clk 0:01:08.5]} 33. e4 {[%clk 0:00:49.4]} 33...
Qf4 {[%clk 0:01:07.9]} 34. Ne2 {[%clk 0:00:41.5]} 34... Qb8 {[%clk 0:00:59.6]}
35. exd5 {[%clk 0:00:39.7]} 35... Bxd5 {[%clk 0:01:00.5]} 36. Nc3 {[%clk
0:00:38.5]} 36... Ba8 {[%clk 0:00:58.7]} 37. Bf5 {[%clk 0:00:36.1]} 37... Qb7
{[%clk 0:00:53.4]} 38. f3 {[%clk 0:00:34.1]} 38... Re8 {[%clk 0:00:41.1]} 39.
Qxc4 {[%clk 0:00:25.3]} 39... Qb6+ {[%clk 0:00:41.1]} 40. Kh2 {[%clk 0:00:20.3]}
40... Bxf3 {[%clk 0:00:40.4]} 41. Rf1 {[%clk 0:00:13]} 41... Bb7 {[%clk
0:00:33.3]} 42. b4 {[%clk 0:00:12.4]} 42... Qd6+ {[%clk 0:00:27]} 43. Kg1 {[%clk
0:00:11.5]} 43... Qg3 {[%clk 0:00:26.4]} 44. Rf2 {[%clk 0:00:02.8]} 44... Re1+
{[%clk 0:00:26.4]} 45. Qf1 {[%clk 0:00:03.1]} 45... Rxf1+ {[%clk 0:00:26.5]} 46.
Kxf1 {[%clk 0:00:04]} 46... Qxc3 {[%clk 0:00:26.7]} 47. g4 {[%clk 0:00:03.8]}
47... Qc1+ {[%clk 0:00:25.5]} 48. Ke2 {[%clk 0:00:03.3]} 48... Ba6+ {[%clk
0:00:25.4]} 49. Kf3 {[%clk 0:00:03]} 49... Qc6+ {[%clk 0:00:24.8]} 50. Kg3
{[%clk 0:00:02.7]} 50... Ne4+ {[%clk 0:00:23.8]} 51. Kf3 {[%clk 0:00:02.3]}
51... Nxf2+ {[%clk 0:00:23]} 52. Kxf2 {[%clk 0:00:03.2]} 52... g6 {[%clk
0:00:22.4]} 53. Bc2 {[%clk 0:00:02.5]} 53... Qxc2+ {[%clk 0:00:21.8]} 54. Ke3
{[%clk 0:00:03.4]} 54... Qb3+ {[%clk 0:00:22.4]} 55. Kd4 {[%clk 0:00:03.7]}
55... Qxa3 {[%clk 0:00:23.3]} 56. Kc5 {[%clk 0:00:04.4]} 56... Qc3+ {[%clk
0:00:23.4]} 57. Kb6 {[%clk 0:00:04.9]} 57... Qxb4+ {[%clk 0:00:24]} 58. Kxa6
{[%clk 0:00:05.5]} 58... Qc3 {[%clk 0:00:24.9]} 59. g5 {[%clk 0:00:05.7]} 59...
Qxh3 {[%clk 0:00:25.8]} 60. gxh6 {[%clk 0:00:05.7]} 60... Qxh6 {[%clk
0:00:26.1]} 61. Kb6 {[%clk 0:00:06.5]} 61... g5+ {[%clk 0:00:27]} 62. Kc7 {[%clk
0:00:07.4]} 62... g4 {[%clk 0:00:27.7]} 63. Kd8 {[%clk 0:00:08.3]} 63... g3
{[%clk 0:00:28.3]} 64. Ke7 {[%clk 0:00:09.2]} 64... g2 {[%clk 0:00:28.9]} 65.
Kd7 {[%clk 0:00:09.5]} 65... g1=Q {[%clk 0:00:29]} 66. Ke7 {[%clk 0:00:10.4]}
66... Qe6+ {[%clk 0:00:28.9]} 0-1

[Event "Early-Titled-Tuesday-Blitz-January-23-2024"]
[Site "Chess.com"]
[Date "2024.01.23"]
[Round "3"]
[White "chess123456s"]
[Black "Tsyhanchuk_Stanislav"]
[Result "1-0"]
[WhiteElo "2545"]
[BlackElo "2292"]
[TimeControl "180+1"]
[EndTime "8:28:32 PST"]
[Termination "chess123456s won by checkmate"]

1. e4 {[%clk 0:03:00.9]} 1... e6 {[%clk 0:02:58.8]} 2. d4 {[%clk 0:03:00.8]}
2... d5 {[%clk 0:02:59.5]} 3. Nc3 {[%clk 0:03:01.3]} 3... Bb4 {[%clk 0:02:59.9]}
4. e5 {[%clk 0:03:00.8]} 4... c5 {[%clk 0:03:00.1]} 5. a3 {[%clk 0:03:01.2]}
5... Bxc3+ {[%clk 0:03:00.2]} 6. bxc3 {[%clk 0:03:02.1]} 6... Qc7 {[%clk
0:03:00.9]} 7. Qg4 {[%clk 0:03:02.5]} 7... f6 {[%clk 0:03:01.3]} 8. Nf3 {[%clk
0:03:01.1]} 8... Qf7 {[%clk 0:03:00.5]} 9. Bb5+ {[%clk 0:03:00]} 9... Kf8 {[%clk
0:02:35.9]} 10. a4 {[%clk 0:02:58.2]} 10... a6 {[%clk 0:02:34.6]} 11. Be2 {[%clk
0:02:56.4]} 11... c4 {[%clk 0:02:33.3]} 12. Ba3+ {[%clk 0:02:56]} 12... Ke8
{[%clk 0:02:33]} 13. exf6 {[%clk 0:02:50.5]} 13... Nxf6 {[%clk 0:02:29.8]} 14.
Qf4 {[%clk 0:02:50.4]} 14... Ne4 {[%clk 0:02:13.7]} 15. Qe3 {[%clk 0:02:40.4]}
15... b5 {[%clk 0:01:47.6]} 16. Ne5 {[%clk 0:02:39.9]} 16... Qf6 {[%clk
0:01:35.2]} 17. h4 {[%clk 0:02:07.1]} 17... Nd7 {[%clk 0:01:25.6]} 18. Nxd7
{[%clk 0:02:03.3]} 18... Bxd7 {[%clk 0:01:26.5]} 19. Bf3 {[%clk 0:02:03.5]}
19... Bc6 {[%clk 0:01:19]} 20. Bxe4 {[%clk 0:02:03]} 20... dxe4 {[%clk
0:01:19.9]} 21. Bc5 {[%clk 0:02:02.2]} 21... Kd7 {[%clk 0:01:16.8]} 22. g3
{[%clk 0:01:58.6]} 22... bxa4 {[%clk 0:00:49.6]} 23. O-O {[%clk 0:01:55.3]}
23... Qf3 {[%clk 0:00:42.9]} 24. Qg5 {[%clk 0:01:35.3]} 24... Qf6 {[%clk
0:00:29.8]} 25. Qe3 {[%clk 0:01:30.8]} 25... Qf3 {[%clk 0:00:28.6]} 26. Qg5
{[%clk 0:01:28.3]} 26... Qf6 {[%clk 0:00:28.6]} 27. Qg4 {[%clk 0:01:28.6]} 27...
h5 {[%clk 0:00:25.5]} 28. Qh3 {[%clk 0:01:28.3]} 28... Qf5 {[%clk 0:00:24.6]}
29. Qh2 {[%clk 0:01:26.3]} 29... g5 {[%clk 0:00:24.5]} 30. hxg5 {[%clk
0:01:23.9]} 30... Qxg5 {[%clk 0:00:25.2]} 31. Rfe1 {[%clk 0:01:13.1]} 31... h4
{[%clk 0:00:23.6]} 32. Re3 {[%clk 0:01:13.7]} 32... Rag8 {[%clk 0:00:17.7]} 33.
g4 {[%clk 0:01:11.3]} 33... Qxg4+ {[%clk 0:00:17.3]} 34. Kh1 {[%clk 0:01:12]}
34... Bd5 {[%clk 0:00:12]} 35. Rb1 {[%clk 0:01:06.8]} 35... Rb8 {[%clk
0:00:10.3]} 36. Rxb8 {[%clk 0:00:49.5]} 36... Rxb8 {[%clk 0:00:11.2]} 37. Qxb8
{[%clk 0:00:45.8]} 37... Qd1+ {[%clk 0:00:11]} 38. Kh2 {[%clk 0:00:45.8]} 38...
Qxc2 {[%clk 0:00:03.9]} 39. Qd6+ {[%clk 0:00:44.3]} 39... Kc8 {[%clk 0:00:04]}
40. Qxa6+ {[%clk 0:00:44.3]} 40... Kd7 {[%clk 0:00:02.5]} 41. Qd6+ {[%clk
0:00:42.8]} 41... Kc8 {[%clk 0:00:03.1]} 42. Qf8+ {[%clk 0:00:36.6]} 42... Kb7
{[%clk 0:00:03.1]} 43. Re1 {[%clk 0:00:30.3]} 43... e3 {[%clk 0:00:03.4]} 44.
Rxe3 {[%clk 0:00:27.4]} 44... Qd1 {[%clk 0:00:03.8]} 45. Qe7+ {[%clk 0:00:23.1]}
45... Kc6 {[%clk 0:00:01.8]} 46. Qd6+ {[%clk 0:00:23.1]} 46... Kb7 {[%clk
0:00:02.4]} 47. Qb6+ {[%clk 0:00:24]} 47... Kc8 {[%clk 0:00:02.7]} 48. Qa6+
{[%clk 0:00:22.7]} 48... Kd7 {[%clk 0:00:03.1]} 49. Qa7+ {[%clk 0:00:21.7]}
49... Kc6 {[%clk 0:00:03]} 50. Qb6+ {[%clk 0:00:17.9]} 50... Kd7 {[%clk
0:00:03.7]} 51. Qd6+ {[%clk 0:00:18]} 51... Kc8 {[%clk 0:00:04.4]} 52. Qf8+
{[%clk 0:00:17]} 52... Kb7 {[%clk 0:00:04.8]} 53. Qg7+ {[%clk 0:00:16.1]} 53...
Kc6 {[%clk 0:00:05.3]} 54. Qg1 {[%clk 0:00:16.3]} 54... Qd2 {[%clk 0:00:05.3]}
55. Qe1 {[%clk 0:00:16.4]} 55... Qc2 {[%clk 0:00:05.5]} 56. Rxe6+ {[%clk
0:00:16.7]} 56... Bxe6 {[%clk 0:00:05.7]} 57. Qxe6+ {[%clk 0:00:17.6]} 57... Kb5
{[%clk 0:00:06.5]} 58. Qb6# {[%clk 0:00:17.7]} 1-0

[Event "Early-Titled-Tuesday-Blitz-January-23-2024"]
[Site "Chess.com"]
[Date "2024.01.23"]
[Round "3"]
[White "SARGISMV"]
[Black "mertfelin"]
[Result "0-1"]
[WhiteElo "2462"]
[BlackElo "2272"]
[TimeControl "180+1"]
[EndTime "8:28:34 PST"]
[Termination "mertfelin won by resignation"]

1. d4 {[%clk 0:01:26.8]} 1... d5 {[%clk 0:01:32.4]} 2. c4 {[%clk 0:01:26.6]}
2... e6 {[%clk 0:01:32.6]} 3. Nc3 {[%clk 0:01:27]} 3... Nf6 {[%clk 0:01:32.9]}
4. cxd5 {[%clk 0:01:26.6]} 4... exd5 {[%clk 0:01:33.4]} 5. Bg5 {[%clk
0:01:26.4]} 5... c6 {[%clk 0:01:33.9]} 6. e3 {[%clk 0:01:26.8]} 6... h6 {[%clk
0:01:34.5]} 7. Bf4 {[%clk 0:01:26.6]} 7... Bd6 {[%clk 0:01:34.4]} 8. Bd3 {[%clk
0:01:27]} 8... Bxf4 {[%clk 0:01:33.9]} 9. exf4 {[%clk 0:01:24.9]} 9... O-O
{[%clk 0:01:34.2]} 10. Nf3 {[%clk 0:01:23.4]} 10... Re8+ {[%clk 0:01:34.6]} 11.
Kf1 {[%clk 0:01:17.2]} 11... Ne4 {[%clk 0:01:25.7]} 12. Qc2 {[%clk 0:01:14.5]}
12... Bf5 {[%clk 0:01:23.7]} 13. h3 {[%clk 0:01:09.2]} 13... Nd7 {[%clk
0:01:17.9]} 14. g4 {[%clk 0:01:08.7]} 14... Nxc3 {[%clk 0:01:17.3]} 15. Bxf5
{[%clk 0:00:58.6]} 15... Nb5 {[%clk 0:01:03.9]} 16. Kg2 {[%clk 0:00:52.4]} 16...
Nd6 {[%clk 0:01:03.8]} 17. Bh7+ {[%clk 0:00:50.9]} 17... Kh8 {[%clk 0:01:03.7]}
18. Bd3 {[%clk 0:00:51.4]} 18... Qf6 {[%clk 0:00:45.9]} 19. Ne5 {[%clk
0:00:32.9]} 19... Nf8 {[%clk 0:00:45.4]} 20. Kg3 {[%clk 0:00:28.4]} 20... Ne6
{[%clk 0:00:45.7]} 21. Qd2 {[%clk 0:00:19.8]} 21... Nxd4 {[%clk 0:00:40.6]} 22.
Rae1 {[%clk 0:00:19.6]} 22... Ne6 {[%clk 0:00:34.1]} 23. h4 {[%clk 0:00:18.8]}
23... Rad8 {[%clk 0:00:15.7]} 24. g5 {[%clk 0:00:18.9]} 24... Qe7 {[%clk
0:00:16.2]} 25. f3 {[%clk 0:00:14.3]} 25... Nf8 {[%clk 0:00:15.3]} 26. f5 {[%clk
0:00:12.8]} 26... Qc7 {[%clk 0:00:15.1]} 27. f4 {[%clk 0:00:13]} 27... Nc4
{[%clk 0:00:14.7]} 28. Bxc4 {[%clk 0:00:12.5]} 28... dxc4 {[%clk 0:00:15.4]} 29.
Qc2 {[%clk 0:00:11.3]} 29... b5 {[%clk 0:00:13.6]} 30. Kg4 {[%clk 0:00:11.7]}
30... Rd4 {[%clk 0:00:10.9]} 31. Qc3 {[%clk 0:00:11.9]} 31... Qd6 {[%clk
0:00:09.3]} 32. Re3 {[%clk 0:00:11.2]} 32... Rxe5 {[%clk 0:00:08.3]} 33. Rhe1
{[%clk 0:00:07.6]} 33... Rxe3 {[%clk 0:00:08.8]} 34. Qxe3 {[%clk 0:00:07]} 34...
h5+ {[%clk 0:00:08.6]} 35. Kxh5 {[%clk 0:00:07]} 35... Qxf4 {[%clk 0:00:09.1]}
36. Qxf4 {[%clk 0:00:06.4]} 36... Rxf4 {[%clk 0:00:10]} 37. Re8 {[%clk
0:00:06.1]} 37... Kg8 {[%clk 0:00:10.6]} 38. g6 {[%clk 0:00:06.1]} 38... Rf2
{[%clk 0:00:10.2]} 39. Kg5 {[%clk 0:00:05.9]} 39... f6+ {[%clk 0:00:08.9]} 40.
Kg4 {[%clk 0:00:06]} 40... Rxb2 {[%clk 0:00:09.2]} 41. Rc8 {[%clk 0:00:05.7]}
41... c3 {[%clk 0:00:08.9]} 42. h5 {[%clk 0:00:06.6]} 42... Rh2 {[%clk
0:00:08.5]} 43. h6 {[%clk 0:00:07.5]} 43... Rxh6 {[%clk 0:00:08.5]} 44. Rxc6
{[%clk 0:00:07.8]} 44... Rh2 {[%clk 0:00:08.9]} 45. Rxc3 {[%clk 0:00:07.7]}
45... Rxa2 {[%clk 0:00:09.4]} 46. Rc7 {[%clk 0:00:07.7]} 46... Ra4+ {[%clk
0:00:09.5]} 47. Kf3 {[%clk 0:00:07.9]} 47... a5 {[%clk 0:00:10.4]} 48. Ke3
{[%clk 0:00:08.6]} 48... b4 {[%clk 0:00:11]} 49. Kd4 {[%clk 0:00:09.2]} 49...
Ra3 {[%clk 0:00:11.7]} 50. Kd5 {[%clk 0:00:10.1]} 50... b3 {[%clk 0:00:11.4]}
51. Kd6 {[%clk 0:00:10.6]} 51... a4 {[%clk 0:00:07.2]} 52. Rb7 {[%clk
0:00:11.1]} 52... Ra2 {[%clk 0:00:07]} 53. Ke7 {[%clk 0:00:11.4]} 53... Re2+
{[%clk 0:00:05.8]} 54. Kd6 {[%clk 0:00:11.4]} 54... b2 {[%clk 0:00:06.2]} 55.
Rb8 {[%clk 0:00:11.1]} 55... a3 {[%clk 0:00:06.1]} 56. Rb3 {[%clk 0:00:10.7]}
56... a2 {[%clk 0:00:06.3]} 57. Rb8 {[%clk 0:00:10.2]} 57... b1=Q {[%clk
0:00:06.7]} 58. Rxf8+ {[%clk 0:00:10.4]} 58... Kxf8 {[%clk 0:00:06.1]} 59. Kc7
{[%clk 0:00:11.3]} 59... Rc2+ {[%clk 0:00:05.7]} 0-1